[Event "Titled Tuesday Blitz March 14 Late 2023"]
[White "Quinones Garcia, Santiago"]
[Black "Piesik, Piotr"]
[WhiteFideId "4408497"]
[BlackFideId "1136194"]
[WhiteElo "2263"]
[BlackElo "2311"]
[Result "0-1"]
[Round "11"]
[TimeControl "180+2"]
[Date "2023.03.14"]
[WhiteClock "0:00:01"]
[BlackClock "0:00:14"]

1. d4 {[%clk 0:03:00]}  c5 {[%clk 0:02:59]} 2. d5 {[%clk 0:03:00]}  e5 {[%clk 0:02:59]} 3. Nc3 {[%clk 0:03:01]}  d6 {[%clk 0:02:59]} 4. e4 {[%clk 0:03:01]}  Be7 {[%clk 0:03:00]} 5. Nf3 {[%clk 0:03:02]}  a6 {[%clk 0:02:59]} 6. a4 {[%clk 0:03:01]}  Bg4 {[%clk 0:03:00]} 7. Be2 {[%clk 0:03:00]}  Bxf3 {[%clk 0:03:00]} 8. Bxf3 {[%clk 0:03:00]}  Bg5 {[%clk 0:03:01]} 9. O-O {[%clk 0:02:57]}  Bxc1 {[%clk 0:03:00]} 10. Qxc1 {[%clk 0:02:57]}  Ne7 {[%clk 0:03:01]} 11. Nb1 {[%clk 0:02:54]}  O-O {[%clk 0:02:56]} 12. Nd2 {[%clk 0:02:54]}  f5 {[%clk 0:02:55]} 13. Nc4 {[%clk 0:02:53]}  Rf6 {[%clk 0:02:50]} 14. exf5 {[%clk 0:02:52]}  Nxf5 {[%clk 0:02:50]} 15. Be4 {[%clk 0:02:52]}  Nd4 {[%clk 0:02:48]} 16. Qd2 {[%clk 0:02:47]}  Nd7 {[%clk 0:02:46]} 17. a5 {[%clk 0:02:39]}  Qe7 {[%clk 0:02:40]} 18. Ra3 {[%clk 0:02:38]}  Rf4 {[%clk 0:02:32]} 19. Re3 {[%clk 0:02:27]}  Nf6 {[%clk 0:02:27]} 20. f3 {[%clk 0:02:05]}  Rf8 {[%clk 0:02:24]} 21. c3 {[%clk 0:01:51]}  Nb5 {[%clk 0:01:27]} 22. Rfe1 {[%clk 0:01:38]}  Qf7 {[%clk 0:01:17]} 23. Qd3 {[%clk 0:00:45]}  Nxe4 {[%clk 0:01:06]} 24. Rxe4 {[%clk 0:00:43]}  Qg6 {[%clk 0:01:06]} 25. Qe2 {[%clk 0:00:33]}  Nc7 {[%clk 0:01:04]} 26. Rxf4 {[%clk 0:00:26]}  Rxf4 {[%clk 0:01:04]} 27. Rd1 {[%clk 0:00:24]}  Ne8 {[%clk 0:00:59]} 28. Nd2 {[%clk 0:00:20]}  Nf6 {[%clk 0:00:56]} 29. g3 {[%clk 0:00:18]}  h5 {[%clk 0:00:52]} 30. Kh1 {[%clk 0:00:16]}  Rf5 {[%clk 0:00:51]} 31. Nc4 {[%clk 0:00:15]}  Nh7 {[%clk 0:00:43]} 32. Qe4 {[%clk 0:00:15]}  Ng5 {[%clk 0:00:36]} 33. Qc2 {[%clk 0:00:09]}  Nf7 {[%clk 0:00:29]} 34. Ne3 {[%clk 0:00:05]}  Rf6 {[%clk 0:00:28]} 35. Qxg6 {[%clk 0:00:05]}  Rxg6 {[%clk 0:00:29]} 36. Nf5 {[%clk 0:00:05]}  Rf6 {[%clk 0:00:30]} 37. g4 {[%clk 0:00:04]}  g6 {[%clk 0:00:26]} 38. Nh4 {[%clk 0:00:03]}  hxg4 {[%clk 0:00:22]} 39. fxg4 {[%clk 0:00:03]}  Kg7 {[%clk 0:00:22]} 40. Kg2 {[%clk 0:00:03]}  Rf4 {[%clk 0:00:22]} 41. h3 {[%clk 0:00:03]}  Ng5 {[%clk 0:00:21]} 42. Rf1 {[%clk 0:00:02]}  Rxf1 {[%clk 0:00:18]} 43. Kxf1 {[%clk 0:00:03]}  Nxh3 {[%clk 0:00:19]} 44. Nf3 {[%clk 0:00:03]}  Nf4 {[%clk 0:00:19]} 45. Ng5 {[%clk 0:00:03]}  Kf6 {[%clk 0:00:14]} 46. Ke1 {[%clk 0:00:01]}  Kxg5 {[%clk 0:00:14]} 0-1


[Site "https://www.chess.com"]

[Event "Titled Tuesday Blitz March 14 Late 2023"]
[White "Mendonca, Leon Luke"]
[Black "Yelisieiev, Yevhenii"]
[WhiteFideId "35028561"]
[BlackFideId "14139642"]
[WhiteElo "2464"]
[BlackElo "2447"]
[Result "1-0"]
[Round "11"]
[TimeControl "180+2"]
[Date "2023.03.14"]
[WhiteClock "0:00:49"]
[BlackClock "0:00:06"]

1. e4 {[%clk 0:02:55]}  d6 {[%clk 0:03:00]} 2. Nf3 {[%clk 0:02:55]}  Nf6 {[%clk 0:03:01]} 3. Nc3 {[%clk 0:02:54]}  e5 {[%clk 0:03:01]} 4. d4 {[%clk 0:02:55]}  Nbd7 {[%clk 0:03:01]} 5. Be2 {[%clk 0:02:55]}  c6 {[%clk 0:03:01]} 6. O-O {[%clk 0:02:55]}  Be7 {[%clk 0:03:01]} 7. a4 {[%clk 0:02:56]}  a5 {[%clk 0:03:01]} 8. h3 {[%clk 0:02:51]}  O-O {[%clk 0:03:01]} 9. Be3 {[%clk 0:02:52]}  Re8 {[%clk 0:02:55]} 10. Re1 {[%clk 0:02:52]}  h6 {[%clk 0:02:51]} 11. Qd2 {[%clk 0:02:51]}  Bf8 {[%clk 0:02:49]} 12. Bd3 {[%clk 0:02:42]}  exd4 {[%clk 0:02:48]} 13. Bxd4 {[%clk 0:02:42]}  Nc5 {[%clk 0:02:48]} 14. Rad1 {[%clk 0:02:28]}  Nxd3 {[%clk 0:02:41]} 15. Qxd3 {[%clk 0:02:29]}  Nd7 {[%clk 0:02:41]} 16. Be3 {[%clk 0:02:24]}  Qc7 {[%clk 0:02:33]} 17. b3 {[%clk 0:02:18]}  Ne5 {[%clk 0:02:31]} 18. Qe2 {[%clk 0:02:15]}  Nxf3+ {[%clk 0:02:28]} 19. Qxf3 {[%clk 0:02:15]}  Be6 {[%clk 0:02:28]} 20. Bf4 {[%clk 0:02:15]}  Rad8 {[%clk 0:02:28]} 21. Rd3 {[%clk 0:02:14]}  Qb6 {[%clk 0:01:52]} 22. Red1 {[%clk 0:02:10]}  Qc5 {[%clk 0:01:51]} 23. R1d2 {[%clk 0:02:01]}  g5 {[%clk 0:01:09]} 24. Be3 {[%clk 0:01:59]}  Qb4 {[%clk 0:01:02]} 25. h4 {[%clk 0:01:57]}  g4 {[%clk 0:00:56]} 26. Qg3 {[%clk 0:01:57]}  Bg7 {[%clk 0:00:53]} 27. Bd4 {[%clk 0:01:54]}  Bxd4 {[%clk 0:00:28]} 28. Rxd4 {[%clk 0:01:54]}  Qc5 {[%clk 0:00:29]} 29. Rxd6 {[%clk 0:01:50]}  Rxd6 {[%clk 0:00:28]} 30. Rxd6 {[%clk 0:01:51]}  b5 {[%clk 0:00:25]} 31. Rd2 {[%clk 0:01:46]}  b4 {[%clk 0:00:22]} 32. Ne2 {[%clk 0:01:41]}  h5 {[%clk 0:00:22]} 33. Qf4 {[%clk 0:01:41]}  Kf8 {[%clk 0:00:20]} 34. Nd4 {[%clk 0:01:41]}  Ke7 {[%clk 0:00:11]} 35. Nxe6 {[%clk 0:01:32]}  fxe6 {[%clk 0:00:08]} 36. Qc7+ {[%clk 0:01:24]}  Kf8 {[%clk 0:00:08]} 37. Rd7 {[%clk 0:01:23]}  Re7 {[%clk 0:00:07]} 38. Rxe7 {[%clk 0:01:17]}  Qxe7 {[%clk 0:00:08]} 39. Qxa5 {[%clk 0:01:17]}  Qxh4 {[%clk 0:00:08]} 40. Qxb4+ {[%clk 0:01:16]}  Kf7 {[%clk 0:00:08]} 41. Qb7+ {[%clk 0:01:13]}  Kf6 {[%clk 0:00:07]} 42. Qc7 {[%clk 0:01:11]}  Kg6 {[%clk 0:00:04]} 43. Qxc6 {[%clk 0:01:12]}  Qf6 {[%clk 0:00:04]} 44. Qc4 {[%clk 0:01:01]}  h4 {[%clk 0:00:04]} 45. Qe2 {[%clk 0:00:48]}  Qa1+ {[%clk 0:00:02]} 46. Kh2 {[%clk 0:00:49]}  Qe5+ {[%clk 0:00:02]} 47. g3 {[%clk 0:00:49]}  hxg3+ {[%clk 0:00:02]} 48. fxg3 {[%clk 0:00:50]}  Qh5+ {[%clk 0:00:03]} 49. Kg1 {[%clk 0:00:49]}  Qc5+ {[%clk 0:00:03]} 50. Kg2 {[%clk 0:00:49]}  Kh5 {[%clk 0:00:02]} 51. Qb5 {[%clk 0:00:48]}  Qxb5 {[%clk 0:00:01]} 52. axb5 {[%clk 0:00:48]}  Kg5 {[%clk 0:00:02]} 53. b6 {[%clk 0:00:48]}  Kf6 {[%clk 0:00:03]} 54. b7 {[%clk 0:00:49]}  Ke5 {[%clk 0:00:03]} 55. b8=Q+ {[%clk 0:00:49]}  Kxe4 {[%clk 0:00:04]} 56. Qg8 {[%clk 0:00:48]}  Ke3 {[%clk 0:00:04]} 57. Qxe6+ {[%clk 0:00:48]}  Kd2 {[%clk 0:00:05]} 58. Qxg4 {[%clk 0:00:49]}  Kxc2 {[%clk 0:00:05]} 59. b4 {[%clk 0:00:48]}  Kb3 {[%clk 0:00:06]} 60. b5 {[%clk 0:00:49]} 1-0


[Site "https://www.chess.com"]

[Event "Titled Tuesday Blitz March 14 Late 2023"]
[White "Preotu, Razvan"]
[Black "Sanchez Alvares, Kelvin Antonio"]
[WhiteFideId "2613280"]
[BlackFideId "3906680"]
[WhiteElo "2407"]
[BlackElo "2217"]
[Result "1-0"]
[Round "11"]
[TimeControl "180+2"]
[Date "2023.03.14"]
[WhiteClock "0:02:05"]
[BlackClock "0:01:34"]

1. e4 {[%clk 0:03:00]}  e5 {[%clk 0:02:58]} 2. Nf3 {[%clk 0:03:00]}  Nc6 {[%clk 0:02:55]} 3. Bc4 {[%clk 0:03:00]}  Bc5 {[%clk 0:02:54]} 4. c3 {[%clk 0:03:00]}  Nf6 {[%clk 0:02:54]} 5. d3 {[%clk 0:03:00]}  a5 {[%clk 0:02:54]} 6. O-O {[%clk 0:03:00]}  d6 {[%clk 0:02:54]} 7. Re1 {[%clk 0:03:00]}  h6 {[%clk 0:02:53]} 8. Nbd2 {[%clk 0:02:59]}  O-O {[%clk 0:02:53]} 9. Nf1 {[%clk 0:02:59]}  Be6 {[%clk 0:02:53]} 10. Bb5 {[%clk 0:02:58]}  Qb8 {[%clk 0:02:52]} 11. d4 {[%clk 0:02:53]}  exd4 {[%clk 0:02:52]} 12. cxd4 {[%clk 0:02:54]}  Bb4 {[%clk 0:02:52]} 13. Re2 {[%clk 0:02:53]}  Bg4 {[%clk 0:02:48]} 14. a3 {[%clk 0:02:52]}  Nxd4 {[%clk 0:02:24]} 15. Qxd4 {[%clk 0:02:40]}  Bxf3 {[%clk 0:02:23]} 16. gxf3 {[%clk 0:02:40]}  Bc5 {[%clk 0:02:23]} 17. Qc3 {[%clk 0:02:38]}  c6 {[%clk 0:02:15]} 18. Bd3 {[%clk 0:02:31]}  b5 {[%clk 0:02:15]} 19. Ng3 {[%clk 0:02:21]}  Re8 {[%clk 0:02:11]} 20. Nf5 {[%clk 0:02:18]}  b4 {[%clk 0:01:53]} 21. Nxh6+ {[%clk 0:02:07]}  Kh7 {[%clk 0:01:50]} 22. Qc4 {[%clk 0:02:07]}  gxh6 {[%clk 0:01:34]} 23. Qxf7+ {[%clk 0:02:05]} 1-0


[Site "https://www.chess.com"]

[Event "Titled Tuesday Blitz March 14 Late 2023"]
[White "Manelyuk, Daniil"]
[Black "Fernandez, Maria Florencia"]
[WhiteFideId "44173920"]
[BlackFideId "116459"]
[WhiteElo "2259"]
[BlackElo "2155"]
[Result "1-0"]
[Round "11"]
[TimeControl "180+2"]
[Date "2023.03.14"]
[WhiteClock "0:02:02"]
[BlackClock "0:00:22"]

1. e4 {[%clk 0:03:00]}  c5 {[%clk 0:02:55]} 2. Nf3 {[%clk 0:02:58]}  d6 {[%clk 0:02:55]} 3. d4 {[%clk 0:02:59]}  cxd4 {[%clk 0:02:55]} 4. Nxd4 {[%clk 0:03:00]}  Nf6 {[%clk 0:02:55]} 5. Nc3 {[%clk 0:03:00]}  g6 {[%clk 0:02:55]} 6. f3 {[%clk 0:03:00]}  Bg7 {[%clk 0:02:55]} 7. Be3 {[%clk 0:03:00]}  O-O {[%clk 0:02:55]} 8. Qd2 {[%clk 0:03:01]}  Nc6 {[%clk 0:02:54]} 9. O-O-O {[%clk 0:03:02]}  d5 {[%clk 0:02:54]} 10. exd5 {[%clk 0:03:02]}  Nxd5 {[%clk 0:02:54]} 11. Nxc6 {[%clk 0:03:03]}  bxc6 {[%clk 0:02:55]} 12. Bd4 {[%clk 0:03:04]}  e5 {[%clk 0:02:55]} 13. Bc5 {[%clk 0:03:04]}  Be6 {[%clk 0:02:55]} 14. Ne4 {[%clk 0:03:04]}  Re8 {[%clk 0:02:56]} 15. h4 {[%clk 0:03:04]}  h6 {[%clk 0:02:56]} 16. g4 {[%clk 0:03:03]}  Qc7 {[%clk 0:02:54]} 17. g5 {[%clk 0:02:57]}  h5 {[%clk 0:02:48]} 18. Bc4 {[%clk 0:02:55]}  Rad8 {[%clk 0:02:43]} 19. Qf2 {[%clk 0:02:54]}  Nb6 {[%clk 0:02:11]} 20. Bxe6 {[%clk 0:02:52]}  Rxe6 {[%clk 0:02:09]} 21. Rxd8+ {[%clk 0:02:49]}  Qxd8 {[%clk 0:02:10]} 22. Rd1 {[%clk 0:02:49]}  Qc7 {[%clk 0:02:06]} 23. Qd2 {[%clk 0:02:47]}  Re8 {[%clk 0:01:50]} 24. Nf6+ {[%clk 0:02:37]}  Bxf6 {[%clk 0:01:49]} 25. gxf6 {[%clk 0:02:38]}  Nd5 {[%clk 0:01:37]} 26. Qg5 {[%clk 0:02:29]}  Re6 {[%clk 0:00:52]} 27. Rxd5 {[%clk 0:02:03]}  cxd5 {[%clk 0:00:42]} 28. Qh6 {[%clk 0:02:03]}  Rxf6 {[%clk 0:00:42]} 29. Bf8 {[%clk 0:02:03]}  g5 {[%clk 0:00:22]} 30. Qg7# {[%clk 0:02:02]} 1-0


[Site "https://www.chess.com"]

[Event "Titled Tuesday Blitz March 14 Late 2023"]
[White "Cuenca Jimenez, Jose Fernando"]
[Black "Popov, Mikhail"]
[WhiteFideId "2255570"]
[BlackFideId "4146182"]
[WhiteElo "2429"]
[BlackElo "2270"]
[Result "1-0"]
[Round "11"]
[TimeControl "180+2"]
[Date "2023.03.14"]
[WhiteClock "0:00:02"]
[BlackClock "0:00:02"]

1. e4 {[%clk 0:03:00]}  g6 {[%clk 0:02:57]} 2. d4 {[%clk 0:03:00]}  Bg7 {[%clk 0:02:58]} 3. c4 {[%clk 0:03:01]}  d6 {[%clk 0:02:58]} 4. Nc3 {[%clk 0:03:01]}  Nf6 {[%clk 0:02:59]} 5. h3 {[%clk 0:03:00]}  O-O {[%clk 0:02:58]} 6. Be3 {[%clk 0:03:01]}  e5 {[%clk 0:02:57]} 7. d5 {[%clk 0:03:01]}  a5 {[%clk 0:02:57]} 8. g4 {[%clk 0:03:02]}  Nfd7 {[%clk 0:02:57]} 9. h4 {[%clk 0:02:59]}  Nc5 {[%clk 0:02:54]} 10. h5 {[%clk 0:02:58]}  c6 {[%clk 0:02:07]} 11. f3 {[%clk 0:02:57]}  cxd5 {[%clk 0:02:06]} 12. cxd5 {[%clk 0:02:57]}  Nba6 {[%clk 0:01:59]} 13. Qd2 {[%clk 0:02:54]}  f5 {[%clk 0:01:41]} 14. hxg6 {[%clk 0:02:31]}  hxg6 {[%clk 0:01:40]} 15. gxf5 {[%clk 0:02:23]}  gxf5 {[%clk 0:01:41]} 16. Bh6 {[%clk 0:02:13]}  Qf6 {[%clk 0:01:25]} 17. Bxg7 {[%clk 0:01:54]}  Kxg7 {[%clk 0:01:24]} 18. Qh2 {[%clk 0:01:40]}  Kf7 {[%clk 0:01:15]} 19. Bxa6 {[%clk 0:01:36]}  bxa6 {[%clk 0:01:11]} 20. O-O-O {[%clk 0:01:32]}  Bd7 {[%clk 0:00:59]} 21. Qh7+ {[%clk 0:01:04]}  Ke8 {[%clk 0:00:47]} 22. Nge2 {[%clk 0:01:00]}  Kd8 {[%clk 0:00:37]} 23. Rdg1 {[%clk 0:00:56]}  Kc7 {[%clk 0:00:35]} 24. Rh6 {[%clk 0:00:54]}  Qd8 {[%clk 0:00:20]} 25. Qg6 {[%clk 0:00:29]}  Nb7 {[%clk 0:00:18]} 26. Rh7 {[%clk 0:00:18]}  Rg8 {[%clk 0:00:15]} 27. Rg7 {[%clk 0:00:18]}  Rxg7 {[%clk 0:00:15]} 28. Qxg7 {[%clk 0:00:19]}  f4 {[%clk 0:00:13]} 29. Kb1 {[%clk 0:00:18]}  Qh8 {[%clk 0:00:09]} 30. Qg2 {[%clk 0:00:15]}  Qh3 {[%clk 0:00:08]} 31. Qf2 {[%clk 0:00:15]}  Rh8 {[%clk 0:00:07]} 32. Rc1 {[%clk 0:00:12]}  Nc5 {[%clk 0:00:04]} 33. a3 {[%clk 0:00:10]}  a4 {[%clk 0:00:03]} 34. Na2 {[%clk 0:00:03]}  Qh2 {[%clk 0:00:02]} 35. Qe1 {[%clk 0:00:03]}  Kd8 {[%clk 0:00:02]} 36. Nb4 {[%clk 0:00:02]}  Qf2 {[%clk 0:00:02]} 37. Qxf2 {[%clk 0:00:02]} 1-0


[Site "https://www.chess.com"]

[Event "Titled Tuesday Blitz March 14 Late 2023"]
[White "Rangel, Daniel"]
[Black "Fishbein, Alexander"]
[WhiteFideId "2124475"]
[BlackFideId "2000377"]
[WhiteElo "2256"]
[BlackElo "2415"]
[Result "0-1"]
[Round "11"]
[TimeControl "180+2"]
[Date "2023.03.14"]
[WhiteClock "0:00:06"]
[BlackClock "0:00:13"]

1. c4 {[%clk 0:03:00]}  Nf6 {[%clk 0:02:59]} 2. g3 {[%clk 0:03:01]}  g6 {[%clk 0:02:58]} 3. Bg2 {[%clk 0:03:01]}  Bg7 {[%clk 0:02:59]} 4. Nc3 {[%clk 0:03:02]}  O-O {[%clk 0:02:59]} 5. e3 {[%clk 0:03:02]}  d6 {[%clk 0:02:59]} 6. Nge2 {[%clk 0:03:03]}  e5 {[%clk 0:02:59]} 7. O-O {[%clk 0:03:04]}  Nc6 {[%clk 0:02:59]} 8. d3 {[%clk 0:03:04]}  Bg4 {[%clk 0:02:57]} 9. b3 {[%clk 0:03:04]}  Qd7 {[%clk 0:02:55]} 10. Bb2 {[%clk 0:03:04]}  Bh3 {[%clk 0:02:55]} 11. Qd2 {[%clk 0:03:04]}  Bxg2 {[%clk 0:02:54]} 12. Kxg2 {[%clk 0:03:05]}  d5 {[%clk 0:02:52]} 13. cxd5 {[%clk 0:02:49]}  Nxd5 {[%clk 0:02:52]} 14. e4 {[%clk 0:02:48]}  Ndb4 {[%clk 0:02:49]} 15. Rad1 {[%clk 0:02:40]}  Rad8 {[%clk 0:02:47]} 16. Nc1 {[%clk 0:02:22]}  Nd4 {[%clk 0:02:44]} 17. a3 {[%clk 0:02:18]}  Nbc6 {[%clk 0:02:42]} 18. Nd5 {[%clk 0:02:16]}  f5 {[%clk 0:02:42]} 19. b4 {[%clk 0:02:11]}  a6 {[%clk 0:02:41]} 20. Ne2 {[%clk 0:02:03]}  Nf3 {[%clk 0:02:31]} 21. Qc2 {[%clk 0:01:52]}  fxe4 {[%clk 0:02:00]} 22. dxe4 {[%clk 0:01:50]}  Qg4 {[%clk 0:01:54]} 23. Ng1 {[%clk 0:01:23]}  Ncd4 {[%clk 0:01:33]} 24. Bxd4 {[%clk 0:01:16]}  Nxd4 {[%clk 0:01:33]} 25. Qd3 {[%clk 0:01:04]}  c6 {[%clk 0:01:31]} 26. f3 {[%clk 0:00:52]}  Qg5 {[%clk 0:01:25]} 27. Ne3 {[%clk 0:00:46]}  Kh8 {[%clk 0:01:21]} 28. h4 {[%clk 0:00:40]}  Qe7 {[%clk 0:01:14]} 29. Qc4 {[%clk 0:00:35]}  b5 {[%clk 0:01:10]} 30. Qc3 {[%clk 0:00:28]}  Qe6 {[%clk 0:01:09]} 31. Nc2 {[%clk 0:00:26]}  Qa2 {[%clk 0:01:02]} 32. Rf2 {[%clk 0:00:23]}  Ne2 {[%clk 0:00:41]} 33. Rxe2 {[%clk 0:00:07]}  Rxd1 {[%clk 0:00:40]} 34. Qxc6 {[%clk 0:00:06]}  Qc4 {[%clk 0:00:29]} 35. Qxc4 {[%clk 0:00:03]}  bxc4 {[%clk 0:00:29]} 36. Ne3 {[%clk 0:00:04]}  Rc1 {[%clk 0:00:27]} 37. Rd2 {[%clk 0:00:04]}  c3 {[%clk 0:00:26]} 38. Rd6 {[%clk 0:00:02]}  Bh6 {[%clk 0:00:23]} 39. Nd5 {[%clk 0:00:02]}  c2 {[%clk 0:00:20]} 40. Rc6 {[%clk 0:00:02]}  Rxg1+ {[%clk 0:00:17]} 41. Kxg1 {[%clk 0:00:03]}  c1=Q+ {[%clk 0:00:17]} 42. Rxc1 {[%clk 0:00:03]}  Bxc1 {[%clk 0:00:17]} 43. Kf1 {[%clk 0:00:04]}  Bxa3 {[%clk 0:00:17]} 44. Ke2 {[%clk 0:00:04]}  Rb8 {[%clk 0:00:16]} 45. f4 {[%clk 0:00:04]}  exf4 {[%clk 0:00:15]} 46. gxf4 {[%clk 0:00:04]}  Bxb4 {[%clk 0:00:15]} 47. Kd3 {[%clk 0:00:05]}  Bf8 {[%clk 0:00:15]} 48. e5 {[%clk 0:00:05]}  a5 {[%clk 0:00:15]} 49. Nf6 {[%clk 0:00:04]}  a4 {[%clk 0:00:15]} 50. Ke4 {[%clk 0:00:04]}  a3 {[%clk 0:00:14]} 51. Nd7 {[%clk 0:00:05]}  Rd8 {[%clk 0:00:14]} 52. Nb8 {[%clk 0:00:06]}  Rxb8 {[%clk 0:00:13]} 0-1


[Site "https://www.chess.com"]

[Event "Titled Tuesday Blitz March 14 Late 2023"]
[White "Hajiyev, Kanan"]
[Black "Johannesson, Ingvar Thor"]
[WhiteFideId "13404148"]
[BlackFideId "2301490"]
[WhiteElo "2103"]
[BlackElo "2360"]
[Result "1-0"]
[Round "11"]
[TimeControl "180+2"]
[Date "2023.03.14"]
[WhiteClock "0:00:07"]
[BlackClock "0:00:10"]

1. d4 {[%clk 0:03:00]}  Nf6 {[%clk 0:02:56]} 2. Nf3 {[%clk 0:03:01]}  e6 {[%clk 0:02:39]} 3. c4 {[%clk 0:03:00]}  c5 {[%clk 0:02:28]} 4. Nc3 {[%clk 0:02:54]}  cxd4 {[%clk 0:02:26]} 5. Nxd4 {[%clk 0:02:55]}  a6 {[%clk 0:02:27]} 6. e4 {[%clk 0:02:54]}  Qc7 {[%clk 0:02:27]} 7. Be2 {[%clk 0:02:50]}  Be7 {[%clk 0:02:27]} 8. O-O {[%clk 0:02:50]}  O-O {[%clk 0:02:28]} 9. Be3 {[%clk 0:02:50]}  d6 {[%clk 0:02:29]} 10. Rc1 {[%clk 0:02:49]}  Nbd7 {[%clk 0:02:30]} 11. f4 {[%clk 0:02:25]}  b6 {[%clk 0:02:31]} 12. Bf3 {[%clk 0:02:21]}  Bb7 {[%clk 0:02:04]} 13. f5 {[%clk 0:02:20]}  e5 {[%clk 0:02:01]} 14. Nde2 {[%clk 0:02:17]}  Qxc4 {[%clk 0:01:52]} 15. Nd5 {[%clk 0:02:13]}  Bxd5 {[%clk 0:01:53]} 16. Rxc4 {[%clk 0:02:12]}  Bxc4 {[%clk 0:01:54]} 17. Rf2 {[%clk 0:01:49]}  Rac8 {[%clk 0:01:26]} 18. Nc3 {[%clk 0:01:45]}  a5 {[%clk 0:00:57]} 19. g4 {[%clk 0:01:34]}  h6 {[%clk 0:00:56]} 20. h4 {[%clk 0:01:34]}  Nh7 {[%clk 0:00:57]} 21. Rh2 {[%clk 0:01:18]}  Rfd8 {[%clk 0:00:52]} 22. Qd2 {[%clk 0:01:02]}  b5 {[%clk 0:00:41]} 23. b3 {[%clk 0:00:48]}  b4 {[%clk 0:00:41]} 24. bxc4 {[%clk 0:00:49]}  bxc3 {[%clk 0:00:42]} 25. Qxc3 {[%clk 0:00:49]}  Nc5 {[%clk 0:00:41]} 26. Qxa5 {[%clk 0:00:41]}  Nf6 {[%clk 0:00:40]} 27. Bxc5 {[%clk 0:00:33]}  Rxc5 {[%clk 0:00:39]} 28. Qa7 {[%clk 0:00:31]}  Rd7 {[%clk 0:00:37]} 29. Qb8+ {[%clk 0:00:27]}  Rd8 {[%clk 0:00:37]} 30. Qb7 {[%clk 0:00:26]}  Rd7 {[%clk 0:00:37]} 31. Qb8+ {[%clk 0:00:27]}  Rd8 {[%clk 0:00:38]} 32. Qb3 {[%clk 0:00:26]}  Nh7 {[%clk 0:00:33]} 33. a4 {[%clk 0:00:21]}  Ra8 {[%clk 0:00:33]} 34. Be2 {[%clk 0:00:21]}  Rca5 {[%clk 0:00:33]} 35. Bd1 {[%clk 0:00:22]}  Nf6 {[%clk 0:00:30]} 36. g5 {[%clk 0:00:19]}  Nd7 {[%clk 0:00:28]} 37. gxh6 {[%clk 0:00:18]}  gxh6 {[%clk 0:00:29]} 38. Rg2+ {[%clk 0:00:17]}  Kf8 {[%clk 0:00:29]} 39. Qg3 {[%clk 0:00:17]}  Bf6 {[%clk 0:00:30]} 40. h5 {[%clk 0:00:12]}  Nc5 {[%clk 0:00:29]} 41. Bc2 {[%clk 0:00:12]}  Nxa4 {[%clk 0:00:29]} 42. Bxa4 {[%clk 0:00:12]}  Rxa4 {[%clk 0:00:30]} 43. Qg8+ {[%clk 0:00:11]}  Ke7 {[%clk 0:00:29]} 44. Qh7 {[%clk 0:00:11]}  Rxc4 {[%clk 0:00:28]} 45. Qxh6 {[%clk 0:00:10]}  Rxe4 {[%clk 0:00:27]} 46. Qc1 {[%clk 0:00:07]}  Ra7 {[%clk 0:00:22]} 47. h6 {[%clk 0:00:06]}  Rea4 {[%clk 0:00:22]} 48. Kh2 {[%clk 0:00:05]}  Rh4+ {[%clk 0:00:21]} 49. Kg3 {[%clk 0:00:05]}  Rha4 {[%clk 0:00:19]} 50. h7 {[%clk 0:00:03]}  Ra3+ {[%clk 0:00:18]} 51. Kh2 {[%clk 0:00:02]}  R3a4 {[%clk 0:00:18]} 52. Qc8 {[%clk 0:00:02]}  Rh4+ {[%clk 0:00:18]} 53. Kg3 {[%clk 0:00:03]}  Rxh7 {[%clk 0:00:17]} 54. Qc6 {[%clk 0:00:04]}  Rg7+ {[%clk 0:00:17]} 55. Kh2 {[%clk 0:00:03]}  Rxg2+ {[%clk 0:00:18]} 56. Kxg2 {[%clk 0:00:04]}  Rd7 {[%clk 0:00:18]} 57. Kf3 {[%clk 0:00:05]}  d5 {[%clk 0:00:15]} 58. Qc5+ {[%clk 0:00:05]}  Ke8 {[%clk 0:00:14]} 59. Qc6 {[%clk 0:00:05]}  d4 {[%clk 0:00:14]} 60. Qxf6 {[%clk 0:00:05]}  d3 {[%clk 0:00:15]} 61. Qxe5+ {[%clk 0:00:05]}  Kd8 {[%clk 0:00:14]} 62. f6 {[%clk 0:00:05]}  Kc8 {[%clk 0:00:15]} 63. Qc5+ {[%clk 0:00:05]}  Kb7 {[%clk 0:00:14]} 64. Qb5+ {[%clk 0:00:05]}  Kc7 {[%clk 0:00:14]} 65. Qa5+ {[%clk 0:00:05]}  Kc8 {[%clk 0:00:14]} 66. Qd2 {[%clk 0:00:06]}  Kc7 {[%clk 0:00:14]} 67. Kf2 {[%clk 0:00:06]}  Kc6 {[%clk 0:00:14]} 68. Ke1 {[%clk 0:00:07]}  Kc7 {[%clk 0:00:14]} 69. Qh2+ {[%clk 0:00:07]}  Kc6 {[%clk 0:00:14]} 70. Kd2 {[%clk 0:00:07]}  Kc5 {[%clk 0:00:13]} 71. Qe5+ {[%clk 0:00:08]}  Kc6 {[%clk 0:00:14]} 72. Qc3+ {[%clk 0:00:07]}  Kb7 {[%clk 0:00:12]} 73. Qc5 {[%clk 0:00:07]}  Kb8 {[%clk 0:00:12]} 74. Qc6 {[%clk 0:00:06]}  Rd8 {[%clk 0:00:10]} 75. Qb6+ {[%clk 0:00:04]}  Kc8 {[%clk 0:00:11]} 76. Qc6+ {[%clk 0:00:05]}  Kb8 {[%clk 0:00:11]} 77. Qb5+ {[%clk 0:00:05]}  Kc7 {[%clk 0:00:11]} 78. Qc4+ {[%clk 0:00:06]}  Kb8 {[%clk 0:00:11]} 79. Qxf7 {[%clk 0:00:06]}  Kc8 {[%clk 0:00:10]} 80. Qe7 {[%clk 0:00:07]}  Rd7 {[%clk 0:00:09]} 81. Qe8+ {[%clk 0:00:07]}  Kc7 {[%clk 0:00:10]} 82. f7 {[%clk 0:00:07]} 1-0


[Site "https://www.chess.com"]